bitfinex-derivatives/quotes_BTCF0:USTF0_20250218
["timestamp","ask_amount","ask_price","bid_price","bid_amount"]
[1739888531242,0.2071685,96548.0,96538.0,0.00015541]
[1739888531446,0.01018321,96556.0,96538.0,0.00015541]
[1739888531638,0.2071753,96545.0,96538.0,0.00015541]
[1739888531938,0.0331,96561.0,96538.0,0.00015541]
[1739888531939,0.2681813,96568.0,96538.0,0.00015541]
[1739888532239,0.2071373,96562.0,96560.0,0.3608]
[1739888532834,0.21746584,96562.0,96560.0,0.3608]
[1739888533253,0.21746584,96562.0,96560.0,0.3618]
[1739888534842,0.21746584,96562.0,96560.0,0.001]
[1739888535040,0.31032854,96562.0,96538.0,0.36095541]
[1739888535247,0.2071867,96539.0,96538.0,0.36095541]
[1739888535548,0.2071867,96539.0,96538.0,0.00015541]
[1739888542749,0.2071867,96539.0,96538.0,0.03325541]
[1739888543650,0.2071591,96552.0,96540.0,0.2071843]
[1739888543851,0.2071591,96552.0,96551.0,0.3608]
[1739888545449,0.2081591,96552.0,96551.0,0.3618]
[1739888549850,0.001,96552.0,96551.0,0.5689609]
[1739888550055,0.20869787,96559.0,96551.0,0.3618]
[1739888550354,0.00155407,96559.0,96558.0,0.5679459]
[1739888551453,0.20869787,96559.0,96558.0,0.5679459]
[1739888551847,0.20869787,96559.0,96558.0,0.3608]
[1739888553451,0.2071566,96553.0,96552.0,0.031]
[1739888555355,0.2071566,96553.0,96552.0,0.001]
[1739888556750,0.2071566,96553.0,96552.0,0.0327]
[1739888558355,0.00155407,96559.0,96552.0,0.3935]
[1739888558655,0.2071545,96554.0,96553.0,0.0304]
[1739888560249,0.2071545,96554.0,96553.0,0.0314]
[1739888562652,0.2071545,96554.0,96553.0,0.001]
[1739888563955,0.2071545,96554.0,96553.0,0.0005567]
[1739888565353,0.2071545,96554.0,96553.0,1e-07]
[1739888568465,0.2081545,96554.0,96553.0,0.001]
[1739888568866,0.2071566,96553.0,96552.0,0.3608]
[1739888569565,0.2376566,96553.0,96552.0,0.3608]
[1739888569760,0.2376566,96553.0,96552.0,0.27654804]
[1739888569965,0.2071695,96547.0,96546.0,0.0311]
[1739888570856,0.21761392,96547.0,96546.0,0.0311]
[1739888571658,0.21961392,96547.0,96546.0,0.0311]
[1739888573165,0.21761392,96547.0,96546.0,0.0311]
[1739888573359,0.21861392,96547.0,96546.0,0.0311]
[1739888573770,0.21761392,96547.0,96546.0,0.0311]
[1739888574067,0.21861392,96547.0,96546.0,0.0311]
[1739888577866,0.2081695,96547.0,96546.0,0.0311]
[1739888584274,0.2071695,96547.0,96546.0,0.0311]
[1739888584474,0.2081695,96547.0,96546.0,0.0311]
[1739888585468,0.207176,96544.0,96543.0,0.3608]
[1739888587171,0.208176,96544.0,96543.0,0.3608]
[1739888589476,0.208176,96544.0,96543.0,0.2765471]
[1739888593084,0.001,96544.0,96543.0,0.4837252]
[1739888593886,0.208176,96544.0,96543.0,0.4837252]
[1739888594070,0.207176,96544.0,96543.0,0.4837252]
[1739888594275,0.208176,96544.0,96543.0,0.2765471]
[1739888596787,0.001,96544.0,96543.0,0.4837252]
[1739888598079,0.2164,96572.0,96543.0,0.2898365]
[1739888598275,0.00124001,96568.0,96563.0,0.3608]
[1739888598577,0.2164,96572.0,96563.0,0.3608]
[1739888598578,0.2071312,96565.0,96563.0,0.3608]
[1739888598882,0.2071312,96565.0,96563.0,0.4537]
[1739888599975,0.2071312,96565.0,96563.0,0.46649916]
[1739888600376,0.2071312,96565.0,96563.0,0.4537]
[1739888600680,0.2071312,96565.0,96563.0,0.6608352]
[1739888600981,0.2071312,96565.0,96563.0,0.6618352]
[1739888601186,0.2071312,96565.0,96563.0,0.674672]
[1739888602187,0.2164,96572.0,96563.0,0.674672]
[1739888602485,0.2071267,96567.0,96563.0,0.674672]
[1739888603489,0.01312232,96576.0,96563.0,0.674672]
[1739888603689,0.2071314,96565.0,96563.0,0.6618352]
[1739888604487,0.2071314,96565.0,96563.0,0.4547]
[1739888605483,0.16868539,96565.0,96563.0,0.4547]
[1739888605786,0.16868539,96565.0,96563.0,0.6618335]
[1739888607589,0.16868539,96565.0,96563.0,0.6608335]
[1739888607886,0.16868539,96565.0,96563.0,0.6618335]
[1739888609485,0.16868539,96565.0,96563.0,0.4547]
[1739888609685,0.16868539,96565.0,96564.0,0.207133]
[1739888610893,0.16868539,96565.0,96564.0,0.208133]
[1739888611191,0.12397686,96573.0,96567.0,0.2071249]
[1739888611377,0.01312232,96576.0,96572.0,0.3608]
[1739888611583,0.00528459,96578.0,96572.0,0.3608]
[1739888612690,0.2071137,96573.0,96572.0,0.3608]
[1739888614086,0.2071137,96573.0,96572.0,0.3618]
[1739888614684,0.2071137,96573.0,96572.0,0.3608]
[1739888614881,0.2071137,96573.0,96572.0,0.3618]
[1739888615894,0.01268101,96580.0,96572.0,0.5689159]
[1739888616094,0.12397686,96582.0,96572.0,0.5689159]
[1739888616287,0.2071137,96573.0,96572.0,0.3618]
[1739888625895,0.10120001,96600.0,96595.0,0.2070666]
[1739888626095,0.3608,96620.0,96595.0,0.3608]
[1739888626296,0.2070403,96608.0,96605.0,0.3608]
[1739888626496,0.2070418,96607.0,96605.0,0.3608]
[1739888626903,0.0627,96606.0,96605.0,0.3608]
[1739888627095,0.0931,96606.0,96605.0,0.3608]
[1739888627400,0.0323,96606.0,96605.0,0.3608]
[1739888630109,0.0323,96606.0,96605.0,0.3618]
[1739888630698,0.098,96606.0,96605.0,0.001]
[1739888631301,0.305043,96606.0,96605.0,0.001]
[1739888632210,0.207058,96599.0,96598.0,0.00015533]
[1739888634000,0.208058,96599.0,96598.0,0.00015533]
[1739888634408,0.22132989,96599.0,96598.0,0.00015533]
[1739888635000,0.208058,96599.0,96598.0,0.00115533]
[1739888636099,0.22124555,96599.0,96598.0,0.00115533]
[1739888637410,0.2070644,96596.0,96595.0,0.3608]
[1739888638609,0.2080644,96596.0,96595.0,0.3618]
[1739888640216,0.2090644,96596.0,96595.0,0.3618]
[1739888640708,0.2070644,96596.0,96595.0,0.3608]
[1739888640910,0.2100644,96596.0,96595.0,0.3618]
[1739888641314,0.2070644,96596.0,96595.0,0.3608]
[1739888641516,0.2070837,96587.0,96586.0,0.00015533]
[1739888643514,0.5678837,96587.0,96586.0,3e-08]
[1739888643915,0.5708837,96587.0,96586.0,0.00100003]
[1739888648612,0.12397686,96596.0,96586.0,0.00100003]
[1739888648613,0.00088001,96631.0,96586.0,0.36180003]
[1739888648914,0.2070258,96614.0,96613.0,0.3608]
[1739888650126,0.22224004,96614.0,96613.0,0.3618]
[1739888651414,0.003,96614.0,96613.0,0.3618]
[1739888651815,0.2100258,96614.0,96613.0,0.3618]
[1739888652722,0.2070258,96614.0,96613.0,0.3618]
[1739888653111,0.2070258,96614.0,96613.0,0.3608]
[1739888653328,0.2070258,96614.0,96613.0,0.3618]
[1739888653717,0.2070258,96614.0,96613.0,0.3608]
[1739888653912,0.2070258,96614.0,96613.0,0.3618]
[1739888664023,0.2069757,96638.0,96613.0,0.3618]
[1739888664326,0.2069757,96638.0,96637.0,0.7216]
[1739888665120,0.00510967,96644.0,96637.0,0.7216]
[1739888665316,0.00084,96689.0,96637.0,0.7216]
[1739888665317,0.00084,96690.0,96688.0,0.2068657]
[1739888665519,0.00511693,96709.0,96698.0,0.2068452]
[1739888665719,0.00511693,96709.0,96699.0,0.3608]
[1739888665720,0.11219274,96700.0,96699.0,0.3608]
[1739888666024,0.31903444,96700.0,96699.0,0.3608]
[1739888666226,0.3068417,96700.0,96699.0,0.3608]
[1739888666620,0.31936327,96700.0,96699.0,0.3608]
[1739888668123,0.31936327,96700.0,96699.0,0.3618]
[1739888668425,0.3068417,96700.0,96699.0,0.3618]
[1739888669229,0.31917893,96700.0,96699.0,0.3618]
[1739888669425,0.31917893,96700.0,96699.0,0.2470475]
[1739888669824,0.31917893,96700.0,96699.0,0.2460475]
[1739888670224,0.206861,96691.0,96690.0,0.00015514]
[1739888671024,0.206861,96691.0,96690.0,4e-08]
[1739888672726,0.206861,96691.0,96690.0,0.00100004]
[1739888672928,0.567661,96691.0,96690.0,4e-08]
[1739888673331,0.2068738,96685.0,96684.0,8e-05]
[1739888674637,0.2068738,96685.0,96684.0,0.00108]
[1739888675725,0.1070738,96685.0,96684.0,0.00108]
[1739888675931,0.2068653,96690.0,96684.0,0.00108]
[1739888676131,0.2068653,96690.0,96687.0,0.3608]
[1739888676328,0.2068662,96689.0,96687.0,0.3608]
[1739888677332,0.2068662,96689.0,96687.0,0.3618]
[1739888678130,0.002,96690.0,96687.0,0.3618]
[1739888678432,0.2068674,96688.0,96687.0,0.3618]
[1739888679234,0.001,96689.0,96687.0,0.3618]
[1739888679538,0.10023445,96700.0,96687.0,0.3608]
[1739888679738,0.10023445,96700.0,96699.0,0.3608]
[1739888680741,8e-05,96709.0,96699.0,0.3608]
[1739888680932,8e-05,96709.0,96708.0,0.3608]
[1739888681840,0.2069025,96709.0,96708.0,0.3608]
[1739888682235,8e-05,96709.0,96708.0,0.5676246]
[1739888682442,4e-05,96710.0,96708.0,0.5676246]
[1739888682832,0.2068604,96710.0,96708.0,0.36084]
[1739888683037,0.2068225,96709.0,96708.0,0.36088]
[1739888683239,4e-05,96710.0,96708.0,0.36088]
[1739888683630,0.0126383,96727.0,96709.0,0.11388]
[1739888683935,0.2067861,96726.0,96725.0,0.3608]
[1739888685745,0.00155173,96738.0,96725.0,0.3608]
[1739888686039,0.00155173,96738.0,96737.0,0.3608]
[1739888686529,0.06425173,96738.0,96737.0,0.3608]
[1739888687345,0.06525173,96738.0,96737.0,0.3618]
[1739888687730,0.06425173,96738.0,96737.0,0.3608]
[1739888687947,0.06525173,96738.0,96737.0,0.3618]
[1739888688239,0.00525173,96738.0,96737.0,0.3618]
[1739888688539,0.00525173,96738.0,96737.0,0.3119]
[1739888690137,0.001,96738.0,96737.0,0.3119]
[1739888692452,0.206759,96739.0,96737.0,0.3109]
[1739888692655,0.001,96738.0,96737.0,0.3119]
[1739888694947,0.2077605,96738.0,96737.0,0.3119]
[1739888695862,0.001,96738.0,96737.0,0.3119]
[1739888697557,0.12397686,96750.0,96737.0,0.3119]
[1739888697763,0.12397686,96750.0,96746.0,0.3608]
[1739888698466,0.12397686,96756.0,96746.0,0.3608]
[1739888698663,0.2067412,96747.0,96746.0,0.3608]
[1739888700068,0.2077412,96747.0,96746.0,0.3618]
[1739888700265,0.2077412,96747.0,96746.0,0.001]
[1739888700463,0.2067733,96732.0,96731.0,8e-05]
[1739888700659,0.12397686,96741.0,96731.0,8e-05]
[1739888700966,0.33073096,96741.0,96740.0,0.3608]
[1739888701265,0.2067541,96741.0,96740.0,0.3608]
[1739888702571,0.001,96741.0,96740.0,0.3608]
[1739888702875,0.2077541,96741.0,96740.0,0.3608]
[1739888703066,0.2067541,96741.0,96740.0,0.3608]
[1739888703267,0.2077541,96741.0,96740.0,0.3618]
[1739888704172,0.00056001,96778.0,96740.0,1.27591191]
[1739888704364,0.01251125,96780.0,96773.0,0.3608]
[1739888704573,0.001,96774.0,96773.0,0.3608]
[1739888705970,0.001,96774.0,96767.0,0.00015505]
[1739888705971,0.2066964,96768.0,96767.0,0.00015505]
[1739888706175,0.2076964,96768.0,96767.0,0.00015505]
[1739888706670,0.2066715,96780.0,96770.0,0.2066917]
[1739888706872,0.2066707,96780.0,96779.0,0.3608]
[1739888707075,0.36136001,96794.0,96779.0,0.7216]
[1739888707076,0.00056001,96794.0,96779.0,0.7216]
[1739888707266,0.1,96800.0,96792.0,0.5674431]
[1739888707468,0.1,96800.0,96793.0,0.3608]
[1739888707681,0.2066035,96812.0,96793.0,0.3608]
[1739888707873,0.0309,96814.0,96805.0,0.3608]
[1739888708180,0.001,96813.0,96805.0,0.3608]
[1739888708370,0.2066105,96809.0,96805.0,0.3608]
[1739888708773,0.2066121,96808.0,96805.0,0.3608]
[1739888708972,0.001,96813.0,96805.0,0.3608]
[1739888709167,0.001,96806.0,96805.0,0.3608]
[1739888709575,0.2066409,96794.0,96793.0,0.00015497]
[1739888709772,0.2076409,96794.0,96793.0,0.00015497]
[1739888710177,0.2066409,96794.0,96793.0,0.00015497]
[1739888710574,0.0327,96804.0,96793.0,0.00015497]
[1739888710769,0.3608,96811.0,96800.0,0.3608]
[1739888711075,0.2066255,96802.0,96800.0,0.3608]
[1739888711376,0.001,96801.0,96800.0,0.3608]
[1739888712674,0.001,96801.0,96800.0,0.3618]
[1739888713973,0.02190875,96815.0,96800.0,0.3618]
[1739888714179,0.02190875,96815.0,96814.0,0.3608]
[1739888715680,0.02190875,96815.0,96814.0,0.3618]
[1739888716176,0.00524417,96837.0,96814.0,0.3618]
[1739888716377,0.00210971,96839.0,96826.0,0.3608]
[1739888716577,0.0015497,96839.0,96838.0,0.3608]
[1739888716770,0.0025497,96839.0,96838.0,0.3608]
[1739888717977,0.0357497,96839.0,96838.0,0.3608]
[1739888719276,0.0357497,96839.0,96838.0,0.001]
[1739888719675,0.206564,96830.0,96829.0,0.00015497]
[1739888719881,0.207564,96830.0,96829.0,0.00015497]
[1739888720573,0.2065854,96820.0,96819.0,0.18560969]
[1739888720765,0.2075854,96820.0,96819.0,0.13570969]
[1739888720971,0.2075854,96820.0,96819.0,0.08580969]
[1739888721171,0.3608,96820.0,96806.0,0.00154912]
[1739888721471,0.5684131,96807.0,96806.0,0.00154912]
[1739888721983,0.5684131,96807.0,96795.0,0.24651602]
[1739888721984,0.2066366,96796.0,96795.0,0.24651602]
[1739888722173,0.2076366,96796.0,96795.0,0.24651602]
[1739888722480,0.22317679,96796.0,96795.0,0.19661602]
[1739888722883,0.22317679,96796.0,96795.0,0.06266842]
[1739888722884,0.22729307,96796.0,96795.0,0.06266842]
[1739888723078,0.22729307,96796.0,96787.0,0.30963715]
[1739888723079,0.2066537,96788.0,96787.0,0.30963715]
[1739888723285,0.2066537,96788.0,96765.0,0.3608]
[1739888723286,0.3608,96788.0,96765.0,0.3608]
[1739888723582,0.2066729,96779.0,96765.0,0.3608]
[1739888724175,0.5674729,96779.0,96765.0,0.3608]
[1739888724576,0.2066857,96773.0,96765.0,0.3608]
[1739888724780,0.2066857,96773.0,96769.0,0.00015497]
[1739888725881,0.2076857,96773.0,96769.0,0.00015497]
[1739888726081,0.001,96773.0,96769.0,0.00015497]
[1739888726774,0.007,96773.0,96769.0,0.00015497]
[1739888727479,0.2136857,96773.0,96769.0,0.00015497]
[1739888728186,0.007,96773.0,96769.0,0.00015497]
[1739888728984,0.18461421,96782.0,96769.0,0.00015497]
[1739888729185,0.007,96773.0,96772.0,0.00254989]
[1739888730283,0.006,96773.0,96772.0,0.00254989]
[1739888731991,0.007,96773.0,96772.0,0.001]
[1739888732490,0.2066921,96770.0,96769.0,0.36095497]
[1739888734888,0.2066921,96770.0,96769.0,0.00015497]
[1739888735391,0.2136921,96770.0,96769.0,0.00115497]
[1739888736486,0.2136921,96770.0,96769.0,7e-08]
[1739888736788,0.2067391,96748.0,96747.0,0.3608]
[1739888737191,0.2067377,96749.0,96747.0,0.3608]
[1739888739186,0.2107377,96749.0,96747.0,0.3608]
[1739888740190,0.206758,96740.0,96738.0,0.00015497]
[1739888740780,0.2067443,96746.0,96738.0,0.00015497]
[1739888740981,0.2067443,96746.0,96745.0,0.3608]
[1739888742178,0.004,96749.0,96738.0,0.00015497]
[1739888742179,0.2067583,96739.0,96738.0,0.00015497]
[1739888743589,0.2077583,96739.0,96738.0,0.00015497]
[1739888743993,0.001,96739.0,96738.0,0.00015497]
[1739888744491,0.00104577,96739.0,96738.0,0.00015497]
[1739888744679,0.0051141,96753.0,96738.0,0.00015497]
[1739888744990,4e-05,96754.0,96738.0,0.00015497]
[1739888744991,4e-05,96754.0,96753.0,0.2067284]
[1739888745185,4e-05,96754.0,96753.0,0.3026284]
[1739888745693,0.2067007,96785.0,96753.0,0.0959]
[1739888745881,0.2067007,96785.0,96783.0,0.3608]
[1739888746290,4e-05,96785.0,96783.0,0.3608]
[1739888746593,8e-05,96790.0,96783.0,0.3608]
[1739888746893,0.00015505,96794.0,96787.0,0.3608]
[1739888747281,0.2066466,96792.0,96787.0,0.3608]
[1739888747791,0.2066529,96789.0,96787.0,0.3608]
[1739888748892,0.007,96788.0,96787.0,0.3608]
[1739888749389,0.2136529,96789.0,96787.0,0.001]
[1739888749888,0.00015505,96794.0,96774.0,0.00015505]
[1739888749889,0.2066814,96775.0,96774.0,0.00015505]
[1739888753288,0.2136814,96775.0,96774.0,0.00115505]
[1739888753893,0.307,96775.0,96769.0,8e-05]
[1739888754191,0.2067177,96758.0,96753.0,4e-05]
[1739888754397,0.0516833,96751.0,96739.0,0.00155045]
[1739888754593,0.3608,96747.0,96739.0,0.00155045]
[1739888754797,0.2067562,96740.0,96739.0,0.00155045]
[1739888756093,0.2107562,96740.0,96739.0,0.00155045]
[1739888756692,0.2067733,96732.0,96730.0,0.00015505]
[1739888756897,0.2067904,96724.0,96722.0,8e-05]
[1739888757095,0.5675904,96724.0,96722.0,8e-05]
[1739888757288,0.206799,96720.0,96697.0,0.00155111]
[1739888757899,0.2068203,96710.0,96697.0,0.00155111]
[1739888758099,0.2068203,96710.0,96709.0,0.00019505]
[1739888758397,0.3608,96713.0,96697.0,0.00155111]
[1739888758598,0.2068289,96706.0,96697.0,0.00155111]
[1739888758807,0.2068289,96706.0,96705.0,0.00012]
[1739888761198,0.2128289,96706.0,96705.0,0.00012]
[1739888762604,0.3668,96706.0,96697.0,0.00155111]
[1739888762810,0.2068717,96686.0,96669.0,0.0315]
[1739888762995,0.3608,96685.0,96669.0,0.3923]
[1739888763198,0.48572,96685.0,96669.0,0.3923]
[1739888763895,0.3608,96685.0,96669.0,0.3923]
[1739888764102,0.50109106,96685.0,96675.0,0.00010408]
[1739888764303,0.37633106,96685.0,96675.0,0.00010408]
[1739888764606,0.2068931,96676.0,96675.0,0.00010408]
[1739888764803,0.2068931,96676.0,96661.0,4e-05]
[1739888764804,0.2069038,96671.0,96661.0,4e-05]
[1739888765604,0.3608,96676.0,96661.0,4e-05]
[1739888765802,0.1246,96675.0,96669.0,0.3608]
[1739888766098,0.004,96671.0,96669.0,0.928507]
[1739888766303,0.18464695,96690.0,96669.0,0.72212]
[1739888766502,0.18464695,96680.0,96669.0,0.36132]
[1739888766713,0.2068871,96679.0,96669.0,0.3608]
[1739888766910,0.2068935,96676.0,96669.0,0.3608]
[1739888767110,0.2068983,96674.0,96669.0,0.3608]
[1739888767411,0.2069026,96672.0,96669.0,0.3608]
[1739888767806,0.00510281,96691.0,96674.0,0.2068955]
[1739888768107,0.00514578,96700.0,96685.0,0.2068722]
[1739888768309,0.00060001,96704.0,96693.0,0.3608]
[1739888768507,0.00527263,96706.0,96693.0,0.3608]
[1739888769015,0.01578146,96709.0,96693.0,0.3608]
[1739888770114,0.2068359,96703.0,96693.0,0.3608]
[1739888771012,0.00315514,96694.0,96693.0,0.3608]
[1739888771517,0.00715514,96694.0,96693.0,0.3608]
[1739888772911,0.00715514,96694.0,96684.0,0.3608]
[1739888773110,0.2068647,96690.0,96681.0,0.0317]
[1739888773802,0.19180209,96694.0,96680.0,0.3608]
[1739888774904,0.2068727,96686.0,96680.0,0.3608]
[1739888775108,0.18980209,96694.0,96680.0,0.3608]
[1739888775416,0.206874,96685.0,96680.0,0.3608]
[1739888776211,0.2068762,96684.0,96680.0,0.3608]
[1739888776408,0.3608,96692.0,96680.0,0.3608]
[1739888776721,0.2068807,96682.0,96680.0,0.3608]
[1739888777124,0.2068824,96681.0,96680.0,0.3608]
[1739888778920,0.2138824,96681.0,96680.0,0.3608]
[1739888783920,0.2069038,96671.0,96670.0,4e-05]
[1739888784818,0.5677038,96671.0,96670.0,4e-05]
[1739888785010,0.2069188,96664.0,96663.0,0.3608]
[1739888787126,0.206923,96662.0,96658.0,4e-05]
[1739888788020,0.567723,96662.0,96658.0,4e-05]
[1739888788523,0.572723,96662.0,96658.0,4e-05]
[1739888789430,0.005,96662.0,96661.0,0.36084]
[1739888789619,0.12728,96662.0,96661.0,0.36084]
[1739888789819,0.12736,96662.0,96661.0,0.36084]
[1739888791228,0.12736,96662.0,96661.0,4e-05]
[1739888791425,0.15746,96662.0,96661.0,4e-05]
[1739888791729,0.0351,96662.0,96661.0,4e-05]
[1739888792028,0.0651,96662.0,96661.0,4e-05]
[1739888792825,0.4259,96662.0,96658.0,4e-05]
[1739888793127,0.42594,96662.0,96658.0,4e-05]
[1739888793325,0.2069295,96659.0,96658.0,4e-05]
[1739888794227,0.00517851,96659.0,96639.0,0.3608]
[1739888794427,0.18464695,96649.0,96631.0,0.3914]
[1739888794725,0.2069826,96635.0,96631.0,0.0306]
[1739888795029,0.2069745,96638.0,96631.0,0.0306]
[1739888795224,0.2069745,96638.0,96637.0,0.3608]
[1739888797933,0.2139745,96638.0,96637.0,0.3608]
[1739888800337,0.2139744,96638.0,96637.0,0.3608]
[1739888800535,0.007,96638.0,96637.0,0.3608]
[1739888800828,0.12932,96638.0,96637.0,0.3608]
[1739888801430,0.12232,96638.0,96637.0,0.3608]
[1739888801625,0.12932,96638.0,96637.0,0.3608]
[1739888802328,0.12932,96638.0,96626.0,0.3608]
[1739888802527,0.2069809,96635.0,96634.0,0.3608]
[1739888803030,0.007,96638.0,96634.0,0.3608]
[1739888803227,0.12192,96637.0,96634.0,0.3608]
[1739888804424,0.12892,96637.0,96634.0,0.3608]
[1739888804624,0.12892,96637.0,96635.0,0.0321]
[1739888804830,0.12368296,96650.0,96635.0,0.0321]
[1739888805037,0.007,96637.0,96636.0,0.0302]
[1739888805237,0.12864,96637.0,96636.0,0.0302]
[1739888805437,0.3356166,96637.0,96636.0,0.0302]
[1739888805628,0.2139766,96637.0,96636.0,0.0302]
[1739888807339,0.2069766,96637.0,96636.0,0.0302]
[1739888807931,0.2139766,96637.0,96636.0,0.0302]
[1739888809637,0.2069809,96635.0,96634.0,0.3608]
[1739888810430,0.0517412,96643.0,96626.0,0.3608]
[1739888810431,0.206998,96627.0,96626.0,0.3608]
[1739888811534,0.213998,96627.0,96626.0,0.3608]
[1739888818434,0.207028,96613.0,96611.0,0.00155235]
[1739888818640,0.207028,96613.0,96604.0,0.4227]
[1739888819142,0.207028,96613.0,96604.0,0.391]
[1739888819650,0.2070205,96617.0,96604.0,0.391]
[1739888820253,0.01444917,96618.0,96604.0,0.391]
[1739888820440,0.12368305,96622.0,96604.0,0.391]
[1739888820441,0.2070108,96621.0,96604.0,0.391]
[1739888820743,0.12368305,96622.0,96620.0,0.3608]
[1739888820944,0.00015523,96622.0,96620.0,0.3608]
[1739888821844,0.003,96621.0,96620.0,0.3608]
[1739888822053,0.12188,96621.0,96620.0,0.3608]
[1739888822349,0.2100108,96621.0,96620.0,0.3608]
[1739888822552,0.2070108,96621.0,96620.0,0.3608]
[1739888823144,0.00515523,96622.0,96620.0,0.3608]
[1739888823349,0.00515523,96622.0,96621.0,0.2371108]
[1739888823647,0.00515523,96622.0,96621.0,0.2676108]
[1739888824049,0.09538753,96628.0,96627.0,0.206998]
[1739888824244,4e-05,96628.0,96627.0,0.567798]
[1739888824854,0.09254779,96630.0,96629.0,0.2069937]
[1739888825754,0.00015523,96639.0,96631.0,0.2069894]
[1739888825950,0.2069447,96652.0,96632.0,0.3608]
[1739888826154,0.2069447,96652.0,96651.0,0.3608]
[1739888827846,0.2069637,96643.0,96642.0,0.00015523]
[1739888829847,4e-05,96647.0,96642.0,0.00015523]
[1739888830048,0.007,96643.0,96642.0,0.00015523]
[1739888831157,4e-05,96647.0,96642.0,0.00015523]
[1739888831158,0.00704,96647.0,96642.0,0.00015523]
[1739888831459,0.00704,96647.0,96646.0,0.3608]
[1739888831653,4e-05,96647.0,96646.0,0.3608]
[1739888832454,4e-05,96647.0,96646.0,0.5677573]
[1739888833849,4e-05,96659.0,96646.0,0.3608]
[1739888834053,4e-05,96659.0,96658.0,0.5677316]
[1739888835557,4e-05,96659.0,96658.0,0.58110961]
[1739888835764,0.00019523,96661.0,96660.0,0.2069273]
[1739888836059,0.00019523,96661.0,96660.0,0.5677273]
[1739888837355,0.00719523,96661.0,96660.0,0.5677273]
[1739888839759,0.00719523,96661.0,96660.0,0.3608]
[1739888839972,0.21412043,96661.0,96660.0,0.3608]
[1739888840654,0.36446043,96661.0,96660.0,0.3608]
[1739888840859,0.2069503,96650.0,96645.0,0.3608]
[1739888841067,0.2375514,96649.0,96645.0,0.3608]
[1739888841264,0.206955,96648.0,96645.0,0.3608]
[1739888841860,0.0306,96649.0,96645.0,0.3608]
[1739888842061,0.0306,96649.0,96648.0,0.3608]
[1739888842257,0.11728,96652.0,96648.0,0.3608]
[1739888842459,0.11728,96652.0,96649.0,0.2069504]
[1739888842666,0.0306,96659.0,96653.0,0.2069418]
[1739888842863,0.0306,96659.0,96658.0,0.3608]
[1739888843061,0.14776,96659.0,96658.0,0.3608]
[1739888843255,0.0306,96659.0,96658.0,0.3608]
[1739888843457,0.00019523,96661.0,96658.0,0.3608]
[1739888843771,0.00019523,96661.0,96659.0,0.2069295]
[1739888844860,0.00019523,96661.0,96658.0,0.3608]
[1739888845972,0.2069277,96660.0,96658.0,0.3608]
[1739888846469,0.2374277,96660.0,96658.0,0.3608]
[1739888848261,0.2444277,96660.0,96658.0,0.3608]
[1739888848461,0.0375,96660.0,96658.0,0.3608]
[1739888848773,0.007,96660.0,96658.0,0.5677302]
[1739888849763,0.00019523,96661.0,96658.0,0.5677302]
[1739888849963,0.007,96660.0,96658.0,0.5677302]
[1739888850360,0.00019523,96661.0,96658.0,0.3608]
[1739888850563,0.007,96660.0,96659.0,0.2069295]
[1739888850965,0.00019523,96661.0,96659.0,0.2069295]
[1739888851162,0.007,96660.0,96659.0,0.2069295]
[1739888852864,0.00019523,96661.0,96660.0,0.2069273]
[1739888854165,0.00719523,96661.0,96660.0,0.2069273]
[1739888855270,0.00019523,96661.0,96660.0,0.2069273]
[1739888855574,0.00719523,96661.0,96660.0,0.2069273]
[1739888857477,0.00619523,96661.0,96660.0,0.2069273]
[1739888858076,0.00719523,96661.0,96660.0,0.2069273]
[1739888859666,0.00619523,96661.0,96660.0,0.2069273]
[1739888859867,0.00619523,96661.0,96658.0,0.3608]
[1739888860076,0.2069295,96659.0,96658.0,0.3608]
[1739888860274,0.2069295,96659.0,96658.0,0.2111]
[1739888860476,0.2069509,96649.0,96648.0,0.3608]
[1739888861676,0.2129509,96649.0,96648.0,0.3608]
[1739888862272,0.006,96649.0,96648.0,0.3608]
[1739888862477,0.12212,96649.0,96648.0,0.3608]
[1739888864178,0.206953,96648.0,96643.0,4e-05]
[1739888866183,0.30226478,96648.0,96643.0,4e-05]
[1739888866775,0.30726478,96648.0,96643.0,4e-05]
[1739888868582,0.10031178,96648.0,96631.0,0.34278723]
[1739888868882,0.12352782,96641.0,96631.0,0.34278723]
[1739888869787,0.12352782,96641.0,96640.0,0.3608]
[1739888869973,4e-05,96647.0,96640.0,0.3608]
[1739888870177,0.2069599,96645.0,96640.0,0.3608]
[1739888870484,0.11524,96644.0,96643.0,0.3608]
[1739888873188,0.11924,96644.0,96643.0,0.3608]
[1739888875378,0.119,96644.0,96632.0,0.3608]
[1739888875595,0.2069796,96636.0,96632.0,0.3608]
[1739888875890,0.12352782,96642.0,96632.0,0.3608]
[1739888876094,0.12352782,96642.0,96640.0,0.3608]
[1739888876294,0.004,96644.0,96640.0,0.3608]
[1739888876483,0.11492,96643.0,96640.0,0.3608]
[1739888876684,0.2069694,96641.0,96640.0,0.3608]
[1739888878386,0.2099694,96641.0,96640.0,0.3608]
[1739888880390,0.2069725,96639.0,96632.0,0.3608]
[1739888880691,0.003,96641.0,96632.0,0.3608]
[1739888880692,0.2069851,96633.0,96632.0,0.3608]
[1739888881494,0.2069894,96631.0,96630.0,8e-05]
[1739888881699,0.21214128,96631.0,96630.0,8e-05]
[1739888881891,0.21214128,96631.0,96629.0,4e-05]
[1739888882205,0.00515188,96631.0,96629.0,4e-05]
[1739888882385,0.031,96637.0,96629.0,4e-05]
[1739888882703,0.2069901,96631.0,96629.0,4e-05]
[1739888884197,0.2139901,96631.0,96629.0,4e-05]
[1739888884798,0.007,96631.0,96629.0,4e-05]
[1739888884997,0.007,96631.0,96629.0,0.2070327]
[1739888887301,0.00015523,96640.0,96629.0,4e-05]
[1739888887498,0.00015523,96640.0,96639.0,0.5677723]
[1739888887696,0.00015523,96640.0,96639.0,0.3608]
[1739888890209,0.00715523,96640.0,96639.0,0.3618]
[1739888890410,0.00715523,96640.0,96639.0,0.001]
[1739888890601,0.03935523,96640.0,96639.0,0.001]
[1739888892505,0.2069916,96630.0,96629.0,4e-05]
[1739888893204,0.0517488,96629.0,96608.0,0.03315252]
[1739888893399,0.3608,96621.0,96608.0,0.03315252]